bitfinex-derivatives/quotes_SOLF0:USTF0_20241231
["timestamp","ask_amount","ask_price","bid_price","bid_amount"]
[1735649121984,8.15999621,193.99,193.92,8.15999621]
[1735649122185,8.15999621,193.97,193.9,11.25969621]
[1735649122978,2.5818,193.96,193.92,2.5823]
[1735649124982,2.96,193.98,193.92,8.15999621]
[1735649125890,2.96,193.98,193.96,2.5818]
[1735649126288,2.96,194.02,193.94,8.15999621]
[1735649126592,10.74119621,194.01,193.97,2.5816]
[1735649127192,8.15999621,194.03,193.96,8.15999621]
[1735649127695,10.74089621,194.03,193.96,8.15999621]
[1735649129388,10.74089621,194.03,193.99,2.5813]
[1735649130094,8.15999621,194.03,193.99,2.5813]
[1735649130291,2.581,194.02,193.98,2.5815]
[1735649130792,2.581,194.02,193.99,2.5814]
[1735649135795,2.581,194.02,193.96,8.15999621]
[1735649135995,2.581,194.02,194.0,2.5813]
[1735649137795,8.15999621,194.03,194.0,2.5813]
[1735649137995,10.74089621,194.03,194.0,2.5813]
[1735649138695,2.5811,194.02,193.99,2.5814]
[1735649138891,8.15999621,194.03,193.95,8.15999621]
[1735649139293,2.5813,194.0,193.97,2.5816]
[1735649139594,2.5813,194.0,193.95,8.15999621]
[1735649140394,2.5813,194.0,193.98,2.5815]
[1735649140798,8.15999621,194.01,193.98,2.5815]
[1735649141096,10.74119621,194.01,193.98,2.5815]
[1735649144094,2.5814,194.0,193.97,2.5816]
[1735649144297,8.15999621,193.99,193.91,1.5335]
[1735649144498,8.15999621,193.97,193.9,9.69749621]
[1735649144893,2.582,193.95,193.9,1.5375]
[1735649145298,8.15999621,193.97,193.92,2.5822]
[1735649145501,2.5818,193.96,193.92,2.5822]
[1735649146401,2.5818,193.96,193.93,2.5822]
[1735649148101,8.15999621,193.97,193.9,9.69749621]
[1735649149104,10.74139621,193.99,193.92,8.15999621]
[1735649149803,10.74139621,193.99,193.96,2.5818]
[1735649150305,2.5813,194.01,193.97,2.5816]
[1735649150507,8.15999621,194.0,193.97,2.5816]
[1735649150702,8.15999621,194.0,193.94,8.15999621]
[1735649151305,8.15999621,194.02,193.94,8.15999621]
[1735649151504,8.15999621,194.02,193.96,8.15999621]
[1735649152706,10.74099621,194.02,193.99,2.5814]
[1735649153797,2.5812,194.01,193.98,2.5815]
[1735649156804,2.5813,194.0,193.98,2.5815]
[1735649157010,8.15999621,194.0,193.96,2.5817]
[1735649157906,2.5815,193.99,193.96,2.5817]
[1735649158113,8.15999621,193.98,193.95,2.5819]
[1735649158705,2.5817,193.97,193.92,8.15999621]
[1735649158909,8.15999621,193.98,193.92,8.15999621]
[1735649159307,2.5818,193.96,193.93,2.5821]
[1735649160313,2.5817,193.97,193.93,2.5821]
[1735649160503,2.5817,193.97,193.94,2.582]
[1735649160708,2.5817,193.97,193.92,8.15999621]
[1735649160709,8.15999621,193.98,193.92,8.15999621]
[1735649161111,8.15999621,193.98,193.9,1.5375]
[1735649161308,8.15999621,193.98,193.92,8.15999621]
[1735649161508,10.74149621,193.98,193.95,2.5819]
[1735649162414,10.74149621,193.98,193.93,2.5822]
[1735649163713,8.15999621,193.98,193.93,2.5822]
[1735649163913,2.5817,193.97,193.93,2.5822]
[1735649165013,2.5816,193.98,193.94,10.74199621]
[1735649165311,2.5816,193.98,193.94,2.582]
[1735649165512,2.5818,193.97,193.93,2.5822]
[1735649165815,8.15999621,194.0,193.93,2.5822]
[1735649168407,2.5818,193.96,193.93,2.5822]
[1735649170717,8.15999621,194.0,193.92,8.15999621]
[1735649170916,2.582,193.95,193.92,10.74229621]
[1735649172016,2.5818,193.96,193.93,2.5822]
[1735649175519,2.5822,193.94,193.9,4.12]
[1735649176722,2.5822,193.93,193.9,4.12]
[1735649178325,2.5821,193.94,193.91,2.5824]
[1735649179129,8.15999621,193.97,193.9,1.5375]
[1735649179429,2.5818,193.96,193.93,2.5822]
[1735649180339,2.5819,193.95,193.93,2.5822]
[1735649186737,8.15999621,193.97,193.92,2.5823]
[1735649187339,2.582,193.95,193.92,2.5823]
[1735649189636,2.5823,193.93,193.9,4.12]
[1735649190842,2.5825,193.91,193.89,11.09753365]
[1735649191942,2.5822,193.93,193.9,2.5826]
[1735649194249,2.5825,193.91,193.89,2.93753744]
[1735649196645,8.15999621,193.93,193.89,2.93753744]
[1735649196849,2.5826,193.9,193.89,2.93753744]
[1735649197048,2.5826,193.9,193.85,56.21316186]
[1735649197049,8.15999621,193.93,193.85,56.21316186]
[1735649197249,8.15999621,193.91,193.85,56.21316186]
[1735649198151,2.5828,193.89,193.86,2.5831]
[1735649200752,2.5829,193.88,193.85,50.63636565]
[1735649201551,2.5828,193.89,193.85,50.63636565]
[1735649204751,2.5828,193.89,193.86,2.5831]
[1735649205143,8.15999621,193.9,193.85,48.05316565]
[1735649205348,2.96,193.91,193.85,48.05316565]
[1735649205653,8.15999621,193.9,193.85,48.05316565]
[1735649205954,2.5829,193.88,193.85,48.05316565]
[1735649206253,8.15999621,193.9,193.86,2.583]
[1735649206458,10.6366935,193.99,193.87,8.15999621]
[1735649206653,8.15999621,193.96,193.89,8.15999621]
[1735649207145,2.5817,193.97,193.89,8.15999621]
[1735649207349,10.74169621,193.97,193.89,8.15999621]
[1735649207551,10.74169621,193.97,193.93,2.5821]
[1735649208050,8.15999621,193.97,193.93,2.5821]
[1735649208554,8.15999621,193.95,193.9,8.15999621]
[1735649208750,2.5821,193.94,193.9,2.5825]
[1735649209351,8.15999621,193.95,193.9,2.5825]
[1735649209654,8.15999621,193.95,193.88,8.15999621]
[1735649209853,8.15999621,193.95,193.85,51.01316565]
[1735649209854,8.15999621,193.93,193.86,8.15999621]
[1735649210250,8.15999621,193.93,193.88,2.5828]
[1735649210451,8.15999621,193.93,193.86,8.15999621]
[1735649210853,2.5826,193.9,193.87,2.583]
[1735649211450,8.15999621,193.92,193.86,8.15999621]
[1735649211656,2.5828,193.89,193.86,8.15999621]
[1735649211855,2.5828,193.89,193.85,50.63626565]
[1735649214753,8.15999621,193.92,193.85,48.05316565]
[1735649214953,8.15999621,193.88,193.83,2.5835]
[1735649215260,8.15999621,193.86,193.78,4.5454]
[1735649215459,8.15999621,193.86,193.79,8.15999621]
[1735649215758,2.5833,193.85,193.81,5.40880719]
[1735649216259,8.15999621,193.86,193.81,2.82500719]
[1735649216459,2.5834,193.84,193.81,2.82500719]
[1735649216654,8.15999621,193.86,193.81,2.82500719]
[1735649216861,2.5833,193.85,193.81,5.40880719]
[1735649217861,2.5835,193.84,193.81,2.82500719]
[1735649218759,8.15999621,193.86,193.81,2.82500719]
[1735649219464,10.74319621,193.86,193.82,2.5837]
[1735649221158,1.6271,193.93,193.81,2.82500719]
[1735649221359,2.96,193.92,193.83,8.15999621]
[1735649221569,8.15999621,193.9,193.83,8.15999621]
[1735649221772,1.6271,193.93,193.83,8.15999621]
[1735649221966,2.96,193.93,193.85,8.15999621]
[1735649222167,8.15999621,193.92,193.85,8.15999621]
[1735649223270,8.15999621,193.9,193.87,2.583]
[1735649223467,2.5826,193.91,193.83,8.15999621]
[1735649223671,12.49023582,193.94,193.87,8.15999621]
[1735649223872,12.49023582,193.94,193.91,2.5824]
[1735649226172,10.90823582,193.94,193.91,2.5824]
[1735649226370,13.49033582,193.94,193.91,2.5824]
[1735649227573,13.49033582,193.94,193.91,2.5823]
[1735649227774,10.90823582,193.94,193.87,8.15999621]
[1735649228072,10.90823582,193.94,193.92,2.5823]
[1735649228469,10.90823582,193.94,193.87,8.15999621]
[1735649229477,10.90823582,193.94,193.89,2.5827]
[1735649229677,8.15999621,193.92,193.85,8.15999621]
[1735649230280,2.5825,193.91,193.85,8.15999621]
[1735649230673,2.5825,193.91,193.81,5.78500719]
[1735649230674,13.49033582,193.94,193.9,2.5825]
[1735649231780,13.49033582,193.94,193.91,2.5825]
[1735649235991,13.49033582,193.94,193.9,2.5825]
[1735649236494,10.90823582,193.94,193.9,2.5825]
[1735649236690,10.90823582,193.94,193.87,8.15999621]
[1735649236987,8.15999621,193.92,193.85,8.15999621]
[1735649237187,2.5825,193.91,193.85,8.15999621]
[1735649237382,2.5825,193.91,193.89,2.5827]
[1735649237785,8.15999621,193.92,193.89,2.5827]
[1735649237992,10.74229621,193.92,193.89,2.5827]
[1735649239485,8.15999621,193.92,193.85,8.15999621]
[1735649239691,2.5825,193.91,193.88,2.5828]
[1735649242091,2.5827,193.9,193.87,2.5829]
[1735649242293,2.5827,193.9,193.85,8.15999621]
[1735649242894,8.15999621,193.92,193.85,8.15999621]
[1735649243097,2.5825,193.91,193.88,2.5828]
[1735649244393,8.15999621,193.92,193.85,8.15999621]
[1735649244591,10.74229621,193.92,193.89,2.5826]
[1735649244791,10.74229621,193.92,193.85,8.15999621]
[1735649245295,10.74229621,193.92,193.89,2.5827]
[1735649245497,13.49033582,193.94,193.87,8.15999621]
[1735649246086,13.49033582,193.94,193.89,2.5827]
[1735649246289,13.49033582,193.94,193.87,8.15999621]
[1735649246495,10.90823582,193.94,193.87,8.15999621]
[1735649246696,10.90823582,193.94,193.82,4.5761]
[1735649246697,2.74823961,193.94,193.89,8.15999621]
[1735649247091,11.11999621,193.96,193.89,8.15999621]
[1735649247298,2.582,193.95,193.91,2.5823]
[1735649247600,11.11999621,193.96,193.89,8.15999621]
[1735649247800,10.74219621,193.94,193.91,2.5824]
[1735649248001,8.15999621,193.94,193.87,11.11999621]
[1735649248902,2.5822,193.93,193.9,2.5825]
[1735649249894,8.15999621,193.92,193.84,1.5976]
[1735649250094,8.15999621,193.92,193.84,9.75759621]
[1735649250299,2.5827,193.89,193.86,2.5831]
[1735649251902,2.5829,193.88,193.85,2.5833]
[1735649252200,8.15999621,193.88,193.84,1.5976]
[1735649252692,2.5831,193.87,193.84,4.181]
[1735649253093,8.15999621,193.88,193.81,10.9850034]
[1735649253899,8.15999621,193.86,193.81,2.82500719]
[1735649254803,2.5833,193.85,193.81,5.40870719]
[1735649256603,2.5834,193.84,193.81,5.40870719]
[1735649256903,8.15999621,193.86,193.81,5.40870719]
[1735649257700,2.5833,193.85,193.82,2.5836]
[1735649259302,8.15999621,193.86,193.81,2.82500719]
[1735649259603,8.15999621,193.88,193.81,10.9850034]
[1735649260105,2.583,193.87,193.84,2.5833]
[1735649260897,2.583,193.87,193.85,2.5833]
[1735649261099,10.74289621,193.88,193.85,2.5833]
[1735649263007,2.583,193.87,193.81,10.9850034]
[1735649263202,2.583,193.87,193.84,2.5834]
[1735649266307,2.5831,193.86,193.84,2.5834]
[1735649269512,2.5833,193.85,193.81,2.82500719]
[1735649269901,2.5833,193.85,193.82,2.5836]
[1735649270116,10.74349621,193.84,193.81,2.82500719]
[1735649270413,8.15999621,193.84,193.77,8.15999621]
[1735649270603,2.5836,193.83,193.79,2.5839]
[1735649271011,2.5836,193.83,193.77,8.15999621]
[1735649272610,2.5836,193.83,193.78,2.5841]
[1735649272816,2.5836,193.83,193.77,8.15999621]
[1735649273711,8.15999621,193.84,193.76,4.6913]
[1735649273712,10.74339621,193.84,193.79,8.15999621]
[1735649274414,10.74339621,193.84,193.81,2.5837]
[1735649274613,8.15999621,193.84,193.79,8.15999621]
[1735649276019,8.15999621,193.84,193.82,2.5836]
[1735649277218,2.5833,193.85,193.82,2.5836]
[1735649277915,8.15999621,193.86,193.79,8.15999621]
[1735649278116,10.74319621,193.86,193.83,2.5835]
[1735649279621,2.5832,193.86,193.83,2.5835]
[1735649279820,10.74319621,193.86,193.83,2.5835]
[1735649280222,2.5832,193.86,193.83,2.5835]
[1735649280421,10.74319621,193.86,193.83,2.5835]
[1735649281124,8.15999621,193.86,193.79,8.15999621]
[1735649281426,8.15999621,193.86,193.83,2.5835]
[1735649281618,2.96,193.87,193.79,8.15999621]
[1735649281619,1.6238,193.94,193.79,8.15999621]
[1735649281818,8.15999621,193.89,193.81,8.15999621]
[1735649282925,10.74279621,193.89,193.81,8.15999621]
[1735649283126,8.15999621,193.89,193.81,8.15999621]
[1735649283425,2.5829,193.88,193.83,2.5835]
[1735649283623,8.15999621,193.89,193.81,8.15999621]
[1735649284225,8.15999621,193.91,193.83,8.15999621]
[1735649284524,11.11999621,193.91,193.83,8.15999621]
[1735649284923,13.70249621,193.91,193.85,2.5832]
[1735649285122,13.70249621,193.91,193.83,8.15999621]
[1735649285318,8.15999621,193.91,193.85,8.15999621]
[1735649285524,8.15999621,193.91,193.89,2.5827]
[1735649287326,8.15999621,193.91,193.87,2.5829]
[1735649287524,10.74279621,193.89,193.82,8.15999621]
[1735649288325,2.96,193.93,193.84,8.15999621]
[1735649288526,2.96,193.93,193.86,8.15999621]
[1735649288729,8.15999621,193.94,193.89,2.5826]
[1735649288923,8.15999621,193.94,193.88,8.15999621]
[1735649289831,8.15999621,193.94,193.91,2.5824]
[1735649290227,8.15999621,193.94,193.86,8.15999621]
[1735649290722,8.15999621,193.94,193.88,8.15999621]
[1735649291231,8.15999621,193.94,193.91,2.5824]
[1735649292228,2.5823,193.92,193.86,8.15999621]
[1735649292527,8.15999621,193.92,193.84,8.15999621]
[1735649292737,2.5824,193.92,193.89,2.5827]
[1735649292926,8.15999621,193.93,193.86,8.15999621]
[1735649293428,10.74219621,193.93,193.9,2.5826]
[1735649294031,8.15999621,193.93,193.86,8.15999621]
[1735649294226,2.5825,193.91,193.88,2.5828]
[1735649295029,2.5823,193.92,193.89,2.5826]
[1735649295229,8.15999621,193.93,193.86,8.15999621]
[1735649295626,10.74229621,193.93,193.9,2.5826]
[1735649296231,8.15999621,193.94,193.86,8.15999621]
[1735649296623,10.74199621,193.95,193.92,2.5822]
[1735649297632,2.582,193.95,193.92,2.5822]
[1735649297937,10.74199621,193.95,193.92,2.5822]
[1735649300936,8.15999621,193.93,193.86,8.15999621]
[1735649301738,2.5824,193.92,193.86,8.15999621]
[1735649303538,2.5824,193.92,193.89,2.5826]
[1735649305145,8.15999621,193.91,193.83,4.4516]
[1735649305340,11.11999621,193.91,193.83,11.11999621]
[1735649305747,8.15999621,193.89,193.86,2.5831]
[1735649307449,10.74279621,193.89,193.86,2.5831]
[1735649309745,8.15999621,193.89,193.87,2.583]
[1735649311650,2.5826,193.9,193.87,2.583]
[1735649312254,8.15999621,193.91,193.89,2.5827]
[1735649312554,5.5423,193.92,193.89,2.5827]
[1735649313150,10.74219621,193.93,193.9,2.5825]
[1735649315761,2.96,193.95,193.87,8.15999621]
[1735649315960,10.74209621,193.94,193.87,8.15999621]
[1735649316454,8.15999621,193.94,193.89,2.5827]
[1735649316653,8.15999621,193.92,193.89,2.5827]
[1735649317356,10.74229621,193.92,193.89,2.5827]
[1735649317556,8.15999621,193.92,193.9,2.5826]
[1735649320661,2.5823,193.93,193.9,2.5826]
[1735649327166,2.5823,193.92,193.9,2.5826]
[1735649329557,8.15999621,193.93,193.9,2.5826]
[1735649329868,11.11999621,193.95,193.89,8.15999621]
[1735649330870,2.5821,193.94,193.92,2.5823]
[1735649331669,13.70199621,193.95,193.92,2.5823]
[1735649331968,11.11999621,193.95,193.92,2.5823]
[1735649332367,11.11999621,193.95,193.89,8.15999621]
[1735649332571,8.15999621,193.93,193.85,8.15999621]
[1735649332970,2.5827,193.9,193.87,2.583]
[1735649333272,2.96,193.9,193.83,9.74469621]
[1735649333677,2.5829,193.89,193.86,2.5831]
[1735649336574,11.11999621,193.9,193.86,2.5831]
[1735649336777,13.70259621,193.9,193.86,2.5831]
[1735649337076,11.11999621,193.9,193.85,2.5832]
[1735649337378,2.5828,193.89,193.83,9.74469621]
[1735649337575,2.5828,193.89,193.85,2.5831]
[1735649337877,2.5828,193.89,193.83,9.74469621]
[1735649339477,2.5828,193.89,193.86,2.5831]
[1735649342276,2.96,193.9,193.87,2.583]
[1735649342277,5.5426,193.9,193.87,2.583]
[1735649343179,2.96,193.9,193.87,2.583]
[1735649343381,2.5827,193.89,193.87,2.583]
[1735649343879,2.96,193.9,193.82,38.72616439]
[1735649344182,2.5833,193.85,193.82,2.5836]
[1735649344378,2.5833,193.85,193.8,8.15999621]
[1735649344379,2.96,193.85,193.8,8.15999621]
[1735649344577,2.5835,193.83,193.8,2.5839]
[1735649346184,2.5834,193.84,193.8,2.5839]
[1735649346879,2.5834,193.84,193.78,9.67369621]
[1735649347085,2.5834,193.84,193.81,2.5838]
[1735649348987,11.11999621,193.87,193.8,8.15999621]
[1735649349581,13.70299621,193.87,193.82,2.5836]
[1735649349781,13.70299621,193.87,193.8,8.15999621]
[1735649350283,13.70299621,193.87,193.84,2.5834]
[1735649350782,13.70299621,193.87,193.85,2.5833]
[1735649351285,11.11999621,193.87,193.85,2.5833]
[1735649352587,13.70299621,193.87,193.84,2.5833]
[1735649353182,8.15999621,193.85,193.68,91.08332498]
[1735649353386,8.15999621,193.81,193.72,9.70269621]
[1735649353583,11.11999621,193.81,193.72,9.70269621]
[1735649354187,11.11999621,193.81,193.77,2.5842]
[1735649354188,2.584,193.8,193.77,2.5842]
[1735649354584,11.11999621,193.81,193.77,2.5842]
[1735649355781,11.11999621,193.81,193.74,8.15999621]
[1735649356487,10.74419621,193.79,193.75,2.5846]
[1735649357381,10.74419621,193.79,193.7,34.75617219]
[1735649357382,8.15999621,193.77,193.7,33.14607219]
[1735649357984,2.96,193.76,193.7,33.14607219]
[1735649358188,5.5446,193.76,193.72,2.5849]
[1735649359892,5.5446,193.76,193.73,2.5848]
[1735649360290,8.15999621,193.75,193.67,1.6209]
[1735649360487,8.15999621,193.73,193.67,8.15999621]
[1735649361091,1.5746,193.8,193.67,8.15999621]
[1735649361390,8.15999621,193.77,193.69,8.15999621]
[1735649361593,2.5842,193.78,193.73,2.5848]
[1735649361792,8.15999621,193.76,193.73,2.5848]
[1735649362191,2.5843,193.77,193.72,2.585]
[1735649362496,8.15999621,193.74,193.67,8.15999621]
[1735649362693,2.96,193.73,193.67,8.15999621]
[1735649363389,2.96,193.73,193.71,2.5851]
[1735649363989,2.96,193.73,193.72,2.585]
[1735649365794,2.96,193.73,193.7,2.5852]
[1735649365993,8.15999621,193.72,193.66,1.5542]
[1735649366295,8.15999621,193.72,193.67,2.5856]
[1735649366592,8.15999621,193.72,193.66,1.5542]
[1735649366897,8.15999621,193.72,193.71,2.5851]
[1735649367394,11.11999621,193.72,193.71,2.5851]
[1735649368389,11.11999621,193.72,193.66,2.5857]
[1735649368596,8.15999621,193.67,193.66,2.5857]
[1735649369901,8.15999621,193.67,193.6,8.15999621]
[1735649370103,8.15999621,193.67,193.65,2.5859]
[1735649370307,11.11999621,193.67,193.51,7.15936041]
[1735649370602,8.15999621,193.57,193.51,7.15936041]
[1735649371102,2.96,193.6,193.51,15.31935662]
[1735649371103,8.15999621,193.59,193.51,15.31935662]
[1735649371305,8.15999621,193.59,193.52,11.14599621]
[1735649371608,8.15999621,193.59,193.52,2.986]
[1735649371902,8.15999621,193.59,193.54,2.5874]
[1735649372304,2.96,193.6,193.43,2.96]
[1735649372503,8.15999621,193.57,193.5,3.0709]
[1735649372906,8.15999621,193.55,193.52,2.5877]
[1735649373106,8.15999621,193.55,193.5,3.0709]
[1735649373503,8.15999621,193.55,193.52,2.5876]
[1735649374404,8.15999621,193.55,193.5,5.6587]
[1735649374405,11.15999621,193.55,193.5,5.6587]
[1735649375200,11.15999621,193.55,193.49,2.588]
[1735649375396,1.5503,193.66,193.47,8.15999621]
[1735649375604,8.15999621,193.6,193.52,8.15999621]
[1735649375803,8.15999621,193.6,193.59,2.5867]
[1735649375998,3.0708,193.7,193.53,1.5753]
[1735649376305,8.15999621,193.62,193.59,2.5867]
[1735649376507,8.15999621,193.62,193.54,11.28729621]
[1735649376911,8.15999621,193.62,193.58,2.5868]
[1735649377705,8.15999621,193.6,193.58,2.5868]
[1735649378303,8.15999621,193.6,193.4,56.32625277]
[1735649378504,8.15999621,193.58,193.56,2.5871]
[1735649379011,8.15999621,193.58,193.54,2.5874]
[1735649379203,8.15999621,193.56,193.49,8.15999621]
[1735649379605,3.0,193.64,193.54,2.5873]
[1735649379606,8.15999621,193.58,193.54,2.5873]
[1735649380805,2.5866,193.61,193.51,8.15999621]
[1735649381006,8.15999621,193.59,193.51,8.15999621]
[1735649381201,8.15999621,193.57,193.5,1.5737]
[1735649381400,8.15999621,193.57,193.52,2.5877]
[1735649381606,8.15999621,193.57,193.5,1.5737]
[1735649382605,8.15999621,193.55,193.5,1.5737]
[1735649382808,8.15999621,193.55,193.54,2.5874]
[1735649386607,3.0,193.59,193.54,2.5874]
[1735649386809,8.15999621,193.57,193.56,2.587]
[1735649387212,8.15999621,193.57,193.55,2.5872]
[1735649387716,8.15999621,193.57,193.56,2.5871]
[1735649389611,8.15999621,193.57,193.55,2.5872]
[1735649389811,8.15999621,193.57,193.5,1.5737]
[1735649390012,3.0,193.6,193.5,1.5737]
[1735649390013,8.15999621,193.54,193.5,1.5737]
[1735649391116,8.15999621,193.54,193.52,2.5876]
[1735649392417,8.15999621,193.54,193.53,2.5875]
[1735649394118,8.15999621,193.54,193.51,2.5877]
[1735649398215,10.74749621,193.54,193.51,2.5877]
[1735649398421,8.15999621,193.52,193.49,2.5881]
[1735649399223,8.15999621,193.52,193.45,8.15999621]
[1735649399522,10.74749621,193.54,193.47,8.15999621]
[1735649399724,3.0,193.59,193.49,8.15999621]
[1735649400021,8.15999621,193.57,193.56,2.5871]
[1735649400321,3.0,193.62,193.53,8.15999621]
[1735649400617,8.15999621,193.6,193.53,8.15999621]
[1735649400824,2.5863,193.62,193.53,8.15999621]
[1735649401022,8.15999621,193.6,193.58,2.5868]
[1735649401423,10.74659621,193.6,193.56,2.5871]
[1735649401624,8.15999621,193.58,193.51,9.78399621]
[1735649402023,8.15999621,193.58,193.55,2.5873]
[1735649402823,8.15999621,193.56,193.53,2.5875]
[1735649403023,8.15999621,193.56,193.51,1.624]
[1735649403327,8.15999621,193.54,193.5,3.2234]
[1735649403522,8.15999621,193.52,193.49,2.588]
[1735649403827,8.15999621,193.52,193.47,7.15936041]
[1735649404122,8.15999621,193.5,193.45,30.13334165]
[1735649404629,8.15999621,193.46,193.45,28.63744165]
[1735649405328,8.15999621,193.46,193.42,88.50122498]
[1735649405522,8.15999621,193.46,193.41,28.63744165]
[1735649405717,8.15999621,193.46,193.43,2.5889]
[1735649405921,8.15999621,193.46,193.41,28.63744165]
[1735649406332,8.15999621,193.46,193.42,2.5889]
[1735649406626,8.15999621,193.44,193.38,30.20174165]
[1735649406824,8.15999621,193.44,193.41,2.589]
[1735649407025,8.15999621,193.44,193.38,30.20174165]
[1735649407425,8.15999621,193.44,193.38,1.5643]
[1735649407620,8.15999621,193.44,193.37,8.15999621]
[1735649407825,8.15999621,193.44,193.41,2.5891]
[1735649408026,8.15999621,193.44,193.37,8.15999621]
[1735649408224,8.15999621,193.44,193.43,2.5889]
[1735649412937,2.588,193.5,193.45,2.5885]
[1735649413230,8.15999621,193.47,193.4,8.15999621]
[1735649413931,3.04,193.5,193.36,4.5089]
[1735649414132,8.15999621,193.49,193.42,8.15999621]
[1735649414334,8.15999621,193.49,193.43,3.1121]
[1735649415821,8.15999621,193.49,193.47,2.5882]
[1735649416934,8.15999621,193.49,193.48,2.5882]
[1735649419932,3.1203,193.57,193.44,8.15999621]
[1735649420134,8.15999621,193.52,193.44,8.15999621]
[1735649421032,8.15999621,193.52,193.43,4.6444]
[1735649421534,8.15999621,193.52,193.43,12.80439621]
[1735649422038,8.15999621,193.52,193.43,4.6444]
[1735649422235,8.15999621,193.52,193.45,8.15999621]
[1735649422737,8.15999621,193.52,193.51,2.5878]
[1735649423445,8.15999621,193.52,193.5,2.5879]
[1735649424337,8.15999621,193.52,193.43,4.6444]
[1735649424642,10.74769621,193.52,193.44,8.15999621]
[1735649424843,8.15999621,193.52,193.44,8.15999621]
[1735649425237,3.04,193.53,193.44,8.15999621]
[1735649425436,8.15999621,193.52,193.44,8.15999621]
[1735649425941,8.15999621,193.52,193.46,2.5884]
[1735649426141,8.15999621,193.52,193.44,8.15999621]
[1735649427443,2.5879,193.51,193.47,2.5882]
[1735649428445,8.15999621,193.52,193.44,8.15999621]
[1735649428446,3.04,193.53,193.44,8.15999621]
[1735649428744,8.15999621,193.52,193.44,8.15999621]
[1735649429843,2.5879,193.5,193.44,8.15999621]
[1735649430249,2.5879,193.5,193.46,2.5883]
[1735649430548,10.74789621,193.5,193.46,2.5883]
[1735649433151,8.15999621,193.5,193.44,8.15999621]
[1735649433356,2.5882,193.48,193.45,2.5886]
[1735649433557,10.74819621,193.48,193.45,2.5886]
[1735649434759,13.76819621,193.48,193.45,2.5886]
[1735649435760,5.6082,193.48,193.45,2.5886]
[1735649436057,11.17999621,193.48,193.46,2.5885]
[1735649436559,8.15999621,193.48,193.47,2.5883]
[1735649436754,10.74789621,193.5,193.47,2.5883]
[1735649437255,8.15999621,193.5,193.43,8.15999621]
[1735649437451,8.15999621,193.5,193.45,8.15999621]
[1735649438348,2.5876,193.53,193.49,2.5881]
[1735649438555,8.15999621,193.52,193.49,2.5881]
[1735649439459,10.74769621,193.52,193.49,2.5881]
[1735649441955,10.74769621,193.52,193.5,2.5879]
[1735649444963,13.76769621,193.52,193.5,2.5879]
[1735649445757,8.15999621,193.52,193.51,2.5878]
[1735649446362,2.5872,193.56,193.53,2.5874]
[1735649446559,8.15999621,193.54,193.53,2.5874]
[1735649447462,8.15999621,193.54,193.52,2.5876]
[1735649450361,8.15999621,193.54,193.46,3.2195]
[1735649450563,8.15999621,193.52,193.46,3.2195]
[1735649450960,8.15999621,193.52,193.5,2.5878]
[1735649451461,8.15999621,193.55,193.47,8.15999621]
[1735649452466,8.15999621,193.55,193.54,2.5873]
[1735649453669,5.6071,193.57,193.54,2.5873]
[1735649453966,3.02,193.57,193.49,8.15999621]
[1735649454167,8.15999621,193.56,193.49,8.15999621]
[1735649454366,8.15999621,193.56,193.55,2.5872]
[1735649454567,8.15999621,193.56,193.49,8.15999621]
[1735649454966,10.74709621,193.56,193.46,6.2395]
[1735649455159,10.74709621,193.56,193.52,2.5876]
[1735649455365,8.15999621,193.56,193.46,3.2195]
[1735649455562,8.15999621,193.54,193.51,2.5877]
[1735649455963,8.15999621,193.54,193.47,8.15999621]
[1735649457270,2.5876,193.53,193.46,6.2395]
[1735649457471,8.15999621,193.54,193.46,14.39949621]
[1735649457670,8.15999621,193.52,193.46,3.2195]
[1735649458169,8.15999621,193.5,193.46,3.2195]
[1735649458573,8.15999621,193.5,193.46,1.6012]
[1735649458774,2.5881,193.49,193.46,2.5884]
[1735649460578,10.74799621,193.5,193.46,2.5884]
[1735649461275,10.74799621,193.5,193.47,2.5883]
[1735649464577,8.15999621,193.48,193.4,2.86353164]
[1735649464775,8.15999621,193.43,193.39,2.5894]
[1735649464973,8.15999621,193.43,193.36,29.63807745]
[1735649465380,10.74929621,193.41,193.37,9.74906041]
[1735649466074,2.589,193.42,193.38,2.5894]
[1735649466281,8.15999621,193.42,193.38,2.5894]